Workbook

Sheet 部门收支总表
A1: 2018年部门预算收支总表
A2: 填报单位：临湘市残疾人联合会 | F2: 单位：元
A3: 收入 | C3: 支出(经济分类） | E3: 支出（功能科目）
A4: 一般预算拨款（补助） | B4: 5091066.80 | C4: 基本支出 | D4: 1758416.28 | E4: 201、一般公共服务支出 | F4: 0.00
A5: 经费拨款 | B5: 1591066.80 | C5: 301、工资福利支出 | D5: 1611416.28 | E5: 202、外交支出 | F5: 0.00
A6: 纳入预算管理的非税收入拨款 | B6: 3500000.00 | C6: 302、商品和服务支出 | D6: 147000.00 | E6: 203、国防支出 | F6: 0.00
A7: 纳入专户管理的非税收入拨款 | B7: 0.00 | C7: 303、对个人和家庭的补助 | D7: 0.00 | E7: 204、公共安全支出 | F7: 0.00
A8: 政府性基金拨款 | B8: 0.00 | C8: 项目支出 | D8: 3332650.52 | E8: 205、教育支出 | F8: 0.00
A9: 事业单位经营收入 | B9: 0.00 | C9: 302、商品和服务支出 | D9: 1307650.52 | E9: 206、科学技术支出 | F9: 0.00
A10: 上级补助收入 | B10: 0.00 | C10: 303、对个人和家庭的补助 | D10: 1860000.00 | E10: 207、文化体育与传媒支出 | F10: 0.00
A11: 附属单位上缴收入 | B11: 0.00 | C11: 307、债务利息及费用支出 | D11: 0.00 | E11: 208、社会保障和就业支出 | F11: 4996090.48
A12: 其他收入 | B12: 0.00 | C12: 309、资本性支出（基本建设） | D12: 165000.00 | E12: 209、社保基金支出 | F12: 0.00
A13: 上年结转 | B13: 0.00 | C13: 310、资本性支出 | D13: 0.00 | E13: 210、医疗卫生与计划生育支出 | F13: 0.00
C14: 311、对企业补助（基本建设） | D14: 0.00 | E14: 211、节能环保支出 | F14: 0.00
C15: 312、对企业补助 | D15: 0.00 | E15: 212、城乡社区支出 | F15: 0.00
C16: 313、对社会保障金补助 | D16: 0.00 | E16: 213、农林水支出 | F16: 0.00
C17: 399、其他支出 | D17: 0.00 | E17: 214、交通运输支出 | F17: 0.00
E18: 215、资源勘探信息等支出 | F18: 0.00
E19: 216、商业服务业等支出 | F19: 0.00
E20: 217、金融支出 | F20: 0.00
E21: 219、援助其他地区支出 | F21: 0.00
E22: 220、国土海洋气象等支出 | F22: 0.00
E23: 221、住房保障支出 | F23: 94976.32
E24: 222、粮油物资储备支出 | F24: 0.00
E25: 223、国有资本经营预算支出 | F25: 0.00
E26: 227、预备费 | F26: 0.00
E27: 229、其他支出 | F27: 0.00
E28: 230、转移性支出 | F28: 0.00
E29: 231、债务还本支出 | F29: 0.00
E30: 232、债务付息支出 | F30: 0.00
E31: 233、债务发行费用支出 | F31: 0.00
A33: 本年收入合计 | B33: 5,091,066.80 | C33: 本年支出合计 | D33: 5,091,066.80 | E33: 本年支出合计 | F33: 5,091,066.80

Sheet 部门收入总表
A2: 部门收入总体情况表
A3: 单位临湘市残疾人联合会 | K3: 单位：万元
A4: 单位 | C4: 总计 | D4: 一般预算拨款 | F4: 纳入专户管理的非税收入拨款 | G4: 政府性基金拨款 | H4: 上级补助收入 | I4: 附属单位上缴收入 | J4: 其他收入 | K4: 上年结转
A5: 单位代码 | B5: 单位名称 | D5: 经费拨款 | E5: 纳入预算管理的非税收入拨款
B6: 合计 | C6: =C7 -> 5091066.80 | D6: 1591066.80 | E6: 3500000.00 | F6: 0.00 | G6: 0.00 | H6: 0.00 | I6: 0.00 | J6: 0.00 | K6: 0.00
A7: 504001 | B7: 社保股 | C7: 5091066.80 | D7: 1591066.80 | E7: 3500000.00 | F7: 0.00 | G7: 0.00 | H7: 0.00 | I7: 0.00 | J7: 0.00 | K7: 0.00

Sheet 部门支出总表
A2: 部门支出总体情况表
A3: 单位:临湘市残疾人联合会 | K3: 单位：万元
A4: 功能科目 | E4: 总计 | F4: 一般预算拨款 | H4: 纳入专户管理的非税收入拨款 | I4: 政府性基金拨款 | J4: 上级补助收入 | K4: 其他收入
A5: 类 | B5: 款 | C5: 项 | D5: 科目名称 | F5: 经费拨款 | G5: 纳入预算管理的非税收入拨款
D6: 合计 | E6: =SUM(E7:E14) -> 5091066.80 | F6: 1591066.80 | G6: 3500000.00 | H6: 0.00 | I6: 0.00 | J6: 0.00 | K6: 0.00
A7: 208 | B7: 11 | C7: 02 | D7: 一般行政管理事务（残疾人事业） | E7: 2129958.80 | F7: 1289067.76 | G7: 840891.04 | H7: 0.00 | I7: 0.00 | J7: 0.00 | K7: 0.00
A8: 208 | B8: 05 | C8: 06 | D8: 机关事业单位职业年金缴费支出 | E8: 8690.88 | F8: 0.00 | G8: 8690.88 | H8: 0.00 | I8: 0.00 | J8: 0.00 | K8: 0.00
A9: 208 | B9: 05 | C9: 05 | D9: 机关事业单位基本养老保险缴费支出 | E9: 237440.80 | F9: 215713.60 | G9: 21727.20 | H9: 0.00 | I9: 0.00 | J9: 0.00 | K9: 0.00
A10: 208 | B10: 11 | C10: 05 | D10: 残疾人就业和扶贫 | E10: 460000.00 | F10: 0.00 | G10: 460000.00 | H10: 0.00 | I10: 0.00 | J10: 0.00 | K10: 0.00
A11: 208 | B11: 11 | C11: 99 | D11: 其他残疾人事业支出 | E11: 420000.00 | F11: 0.00 | G11: 420000.00 | H11: 0.00 | I11: 0.00 | J11: 0.00 | K11: 0.00
A12: 208 | B12: 11 | C12: 07 | D12: 残疾人生活和护理补贴 | E12: 1260000.00 | F12: 0.00 | G12: 1260000.00 | H12: 0.00 | I12: 0.00 | J12: 0.00 | K12: 0.00
A13: 208 | B13: 11 | C13: 04 | D13: 残疾人康复 | E13: 480000.00 | F13: 0.00 | G13: 480000.00 | H13: 0.00 | I13: 0.00 | J13: 0.00 | K13: 0.00
A14: 221 | B14: 02 | C14: 01 | D14: 住房公积金 | E14: 94976.32 | F14: 86285.44 | G14: 8690.88 | H14: 0.00 | I14: 0.00 | J14: 0.00 | K14: 0.00

Sheet 部门支出总表(分类)
A2: 部门支出总表分类
A3: 单位临湘市残疾人联合会 | Q3: 单位：万元
A4: 功能科目 | E4: 总计 | F4: 基本支出 | J4: 项目支出
A5: 科目编码 | D5: 科目名称 | F5: 合计 | G5: 工资福利支出 | H5: 一般商品和服务支出 | I5: 对个人和家庭的补助 | J5: 合计 | K5: 商品和服务支出 | L5: 对个人和家庭的补助支出 | M5: 基本建设 | N5: 其他资本性支出 | O5: 对企事业单位的补贴 | P5: 其他支出 | Q5: 债务利息及费用支出
A6: 类 | B6: 款 | C6: 项
D7: 合计 | E7: =SUM(E8:E15) -> 5091066.80 | F7: 1758416.28 | G7: 1611416.28 | H7: 147000.00 | I7: 0.00 | J7: 3332650.52 | K7: 1307650.52 | L7: 1860000.00 | M7: 165000.00 | N7: 0.00 | O7: 0.00 | P7: 0.00 | Q7: 0.00
A8: 208 | B8: 11 | C8: 07 | D8: 残疾人生活和护理补贴 | E8: 1260000.00 | F8: 0.00 | G8: 0.00 | H8: 0.00 | I8: 0.00 | J8: 1260000.00 | K8: 370000.00 | L8: 890000.00 | M8: 0.00 | N8: 0.00 | O8: 0.00 | P8: 0.00 | Q8: 0.00
A9: 208 | B9: 11 | C9: 99 | D9: 其他残疾人事业支出 | E9: 420000.00 | F9: 0.00 | G9: 0.00 | H9: 0.00 | I9: 0.00 | J9: 420000.00 | K9: 270000.00 | L9: 30000.00 | M9: 120000.00 | N9: 0.00 | O9: 0.00 | P9: 0.00 | Q9: 0.00
A10: 208 | B10: 11 | C10: 04 | D10: 残疾人康复 | E10: 480000.00 | F10: 0.00 | G10: 0.00 | H10: 0.00 | I10: 0.00 | J10: 480000.00 | K10: 0.00 | L10: 480000.00 | M10: 0.00 | N10: 0.00 | O10: 0.00 | P10: 0.00 | Q10: 0.00
A11: 208 | B11: 11 | C11: 05 | D11: 残疾人就业和扶贫 | E11: 460000.00 | F11: 0.00 | G11: 0.00 | H11: 0.00 | I11: 0.00 | J11: 460000.00 | K11: 0.00 | L11: 460000.00 | M11: 0.00 | N11: 0.00 | O11: 0.00 | P11: 0.00 | Q11: 0.00
A12: 208 | B12: 05 | C12: 06 | D12: 机关事业单位职业年金缴费支出 | E12: 8690.88 | F12: 8690.88 | G12: 8690.88 | H12: 0.00 | I12: 0.00 | J12: 0.00 | K12: 0.00 | L12: 0.00 | M12: 0.00 | N12: 0.00 | O12: 0.00 | P12: 0.00 | Q12: 0.00
A13: 208 | B13: 05 | C13: 05 | D13: 机关事业单位基本养老保险缴费支出 | E13: 237440.80 | F13: 237440.80 | G13: 237440.80 | H13: 0.00 | I13: 0.00 | J13: 0.00 | K13: 0.00 | L13: 0.00 | M13: 0.00 | N13: 0.00 | O13: 0.00 | P13: 0.00 | Q13: 0.00
A14: 208 | B14: 11 | C14: 02 | D14: 一般行政管理事务（残疾人事业） | E14: 2129958.80 | F14: 1417308.28 | G14: 1270308.28 | H14: 147000.00 | I14: 0.00 | J14: 712650.52 | K14: 667650.52 | L14: 0.00 | M14: 45000.00 | N14: 0.00 | O14: 0.00 | P14: 0.00 | Q14: 0.00
A15: 221 | B15: 02 | C15: 01 | D15: 住房公积金 | E15: 94976.32 | F15: 94976.32 | G15: 94976.32 | H15: 0.00 | I15: 0.00 | J15: 0.00 | K15: 0.00 | L15: 0.00 | M15: 0.00 | N15: 0.00 | O15: 0.00 | P15: 0.00 | Q15: 0.00

Sheet 基本-工资福利
A2: 基本支出预算明细表-工资福利
A3: 单位临湘市残疾人联合会
A4: 功能科目 | D4: 科目名称 | E4: 总计 | F4: 工资性支出 | K4: 社会保障缴费 | S4: 伙食补贴支出 | U4: 其他工资福利支出
A5: 类 | B5: 款 | C5: 项 | F5: 合计 | G5: 基本工资 | H5: 津贴补贴 | I5: 奖金 | J5: 绩效工资 | K5: 合计 | L5: 基本医疗保险 | M5: 医疗费 | N5: 其他社会保障缴费 | O5: 机关事业单位基本养老保险缴费 | P5: 职业年金 | Q5: 住房公积金 | R5: 公务员医疗补助缴费 | S5: 合计 | T5: 伙食补助费
D6: 合计 | E6: =E7 -> 1,611,416.28 | F6: 1,187,204.00 | G6: 689,352.00 | H6: 227,100.00 | I6: 30,920.00 | J6: 239,832.00 | K6: 424,212.28 | L6: 83,104.28 | M6: 0.00 | N6: 0.00 | O6: 237,440.80 | P6: 8,690.88 | Q6: 94,976.32 | R6: 0.00 | S6: 0.00 | T6: 0.00 | U6: 0.00
E7: =SUM(E8:E11) -> 1,611,416.28 | F7: 1,187,204.00 | G7: 689,352.00 | H7: 227,100.00 | I7: 30,920.00 | J7: 239,832.00 | K7: 424,212.28 | L7: 83,104.28 | M7: 0.00 | N7: 0.00 | O7: 237,440.80 | P7: 8,690.88 | Q7: 94,976.32 | R7: 0.00 | S7: 0.00 | T7: 0.00 | U7: 0.00
A8: 208 | B8: 05 | C8: 05 | D8: 机关事业单位基本养老保险缴费支出 | E8: 237,440.80 | F8: 0.00 | G8: 0.00 | H8: 0.00 | I8: 0.00 | J8: 0.00 | K8: 237,440.80 | L8: 0.00 | M8: 0.00 | N8: 0.00 | O8: 237,440.80 | P8: 0.00 | Q8: 0.00 | R8: 0.00 | S8: 0.00 | T8: 0.00 | U8: 0.00
A9: 208 | B9: 11 | C9: 02 | D9: 一般行政管理事务（残疾人事业） | E9: 1,270,308.28 | F9: 1,187,204.00 | G9: 689,352.00 | H9: 227,100.00 | I9: 30,920.00 | J9: 239,832.00 | K9: 83,104.28 | L9: 83,104.28 | M9: 0.00 | N9: 0.00 | O9: 0.00 | P9: 0.00 | Q9: 0.00 | R9: 0.00 | S9: 0.00 | T9: 0.00 | U9: 0.00
A10: 208 | B10: 05 | C10: 06 | D10: 机关事业单位职业年金缴费支出 | E10: 8,690.88 | F10: 0.00 | G10: 0.00 | H10: 0.00 | I10: 0.00 | J10: 0.00 | K10: 8,690.88 | L10: 0.00 | M10: 0.00 | N10: 0.00 | O10: 0.00 | P10: 8,690.88 | Q10: 0.00 | R10: 0.00 | S10: 0.00 | T10: 0.00 | U10: 0.00
A11: 221 | B11: 02 | C11: 01 | D11: 住房公积金 | E11: 94,976.32 | F11: 0.00 | G11: 0.00 | H11: 0.00 | I11: 0.00 | J11: 0.00 | K11: 94,976.32 | L11: 0.00 | M11: 0.00 | N11: 0.00 | O11: 0.00 | P11: 0.00 | Q11: 94,976.32 | R11: 0.00 | S11: 0.00 | T11: 0.00 | U11: 0.00

Sheet 基本-商品和服务支出
A2: 基本支出预算明细表-商品和服务支出
A3: 单位临湘市残疾人联合会 | W3: 单位：元
A4: 功能科目 | D4: 科目名称 | E4: 总计 | F4: 办公费 | G4: 日常印刷费 | H4: 水费 | I4: 电费 | J4: 邮电费 | K4: 取暖费 | L4: 物业管理费 | M4: 差旅费 | N4: 日常维修(护)费 | O4: 租赁费 | P4: 会议费 | Q4: 培训费 | R4: 公务接待费 | S4: 劳务费 | T4: 工会经费 | U4: 福利费 | V4: 公务用车运行维护费 | W4: 其他交通费 | X4: 其他一般商品和服务支出
A5: 类 | B5: 款 | C5: 项
D6: 合计 | E6: =E7 -> 147,000.00 | F6: 16,500.00 | G6: 2,930.00 | H6: 2,800.00 | I6: 19,200.00 | J6: 2,500.00 | K6: 0.00 | L6: 0.00 | M6: 14,000.00 | N6: 19,000.00 | O6: 0.00 | P6: 12,000.00 | Q6: 2,300.00 | R6: 27,500.00 | S6: 1,500.00 | T6: 5,530.00 | U6: 17,240.00 | V6: 0.00 | W6: 0.00 | X6: 1,000.00
A7: 208 | B7: 11 | C7: 02 | D7: 一般行政管理事务（残疾人事业） | E7: 147,000.00 | F7: 16,500.00 | G7: 2,930.00 | H7: 2,800.00 | I7: 19,200.00 | J7: 2,500.00 | K7: 0.00 | L7: 0.00 | M7: 14,000.00 | N7: 19,000.00 | O7: 0.00 | P7: 12,000.00 | Q7: 2,300.00 | R7: 27,500.00 | S7: 1,500.00 | T7: 5,530.00 | U7: 17,240.00 | V7: 0.00 | W7: 0.00 | X7: 1,000.00

Sheet 基本-个人家庭
A2: 基本支出明细表-对个人和家庭的补助
A3: 单位临湘市残疾人联合会 | P3: 单位：元
A4: 功能科目 | D4: 科目名称 | E4: 总计 | F4: 离休费 | G4: 退休费 | H4: 退职(役)费 | I4: 抚恤金 | J4: 生活补助 | K4: 救济费 | L4: 医疗费 | M4: 助学金 | N4: 奖励金 | O4: 生产补贴 | P4: 其他对个人和家庭的补助
A5: 类 | B5: 款 | C5: 项

Sheet 财政拨款收支总表
A1: 2018年部门预算收支总表
A2: 填报单位：临湘市残疾人联合会 | G2: 单位：元
A3: 收入 | C3: 支出（功能科目）
A4: 项目 | B4: 本年预算 | C4: 项目 | D4: 合计 | E4: 一般公共预算 | F4: 政府性基金预算 | G4: 国有资本经营预算
A5: 一般预算拨款（补助） | B5: 5091066.80 | C5: 201、一般公共服务支出 | D5: 0.00 | E5: 0.00 | F5: 0.00
A6: 经费拨款 | B6: 1591066.80 | C6: 202、外交支出 | D6: 0.00 | E6: 0.00 | F6: 0.00
A7: 纳入预算管理的非税收入拨款 | B7: 3500000.00 | C7: 203、国防支出 | D7: 0.00 | E7: 0.00 | F7: 0.00
A8: 纳入专户管理的非税收入拨款 | B8: 0.00 | C8: 204、公共安全支出 | D8: 0.00 | E8: 0.00 | F8: 0.00
A9: 政府性基金拨款 | B9: 0.00 | C9: 205、教育支出 | D9: 0.00 | E9: 0.00 | F9: 0.00
A10: 事业单位经营收入 | B10: 0.00 | C10: 206、科学技术支出 | D10: 0.00 | E10: 0.00 | F10: 0.00
A11: 上级补助收入 | B11: 0.00 | C11: 207、文化体育与传媒支出 | D11: 0.00 | E11: 0.00 | F11: 0.00
A12: 附属单位上缴收入 | B12: 0.00 | C12: 208、社会保障和就业支出 | D12: 4996090.48 | E12: 0.00 | F12: 0.00
A13: 其他收入 | B13: 0.00 | C13: 209、社保基金支出 | D13: 0.00 | E13: 0.00 | F13: 0.00
A14: 上年结转 | B14: 0.00 | C14: 210、医疗卫生与计划生育支出 | D14: 0.00 | E14: 0.00 | F14: 0.00
C15: 211、节能环保支出 | D15: 0.00 | E15: 0.00 | F15: 0.00
C16: 212、城乡社区支出 | D16: 0.00 | E16: 0.00 | F16: 0.00
C17: 213、农林水支出 | D17: 0.00 | E17: 0.00 | F17: 0.00
C18: 214、交通运输支出 | D18: 0.00 | E18: 0.00 | F18: 0.00
C19: 215、资源勘探信息等支出 | D19: 0.00 | E19: 0.00 | F19: 0.00
C20: 216、商业服务业等支出 | D20: 0.00 | E20: 0.00 | F20: 0.00
C21: 217、金融支出 | D21: 0.00 | E21: 0.00 | F21: 0.00
C22: 219、援助其他地区支出 | D22: 0.00 | E22: 0.00 | F22: 0.00
C23: 220、国土海洋气象等支出 | D23: 0.00 | E23: 0.00 | F23: 0.00
C24: 221、住房保障支出 | D24: 94976.32 | E24: 0.00 | F24: 0.00
C25: 222、粮油物资储备支出 | D25: 0.00 | E25: 0.00 | F25: 0.00
C26: 223、国有资本经营预算支出 | D26: 0.00 | E26: 0.00 | F26: 0.00
C27: 227、预备费 | D27: 0.00 | E27: 0.00 | F27: 0.00
C28: 229、其他支出 | D28: 0.00 | E28: 0.00 | F28: 0.00
C29: 230、转移性支出 | D29: 0.00 | E29: 0.00 | F29: 0.00
C30: 231、债务还本支出 | D30: 0.00 | E30: 0.00 | F30: 0.00
C31: 232、债务付息支出 | D31: 0.00 | E31: 0.00 | F31: 0.00
C32: 233、债务发行费用支出 | D32: 0.00 | E32: 0.00 | F32: 0.00
A34: 本年收入合计 | B34: 5,091,066.80 | C34: 本年支出合计 | D34: 5,091,066.80 | E34: 0.0000 | F34: 0.00

Sheet 一般预算支出表
A2: 一般公共预算支出情况表
A3: 单位临湘市残疾人联合会 | P3: 单位：元
A4: 功能科目 | E4: 总计 | F4: 基本支出 | J4: 项目支出
A5: 科目编码 | D5: 科目名称 | F5: 合计 | G5: 工资福利支出 | H5: 一般商品和服务支出 | I5: 对个人和家庭的补助 | J5: 合计 | K5: 商品和服务支出 | L5: 对个人和家庭的补助支出 | M5: 基本建设 | N5: 其他资本性支出 | O5: 对企事业单位的补贴 | P5: 其他支出 | Q5: 债务利息及费用支出
A6: 类 | B6: 款 | C6: 项
D7: 合计 | E7: =SUM(E8:E15) -> 5,091,066.80 | F7: 1,758,416.28 | G7: 1,611,416.28 | H7: 147,000.00 | I7: 0.00 | J7: 3,332,650.52 | K7: 1,307,650.52 | L7: 1,860,000.00 | M7: 165,000.00 | N7: 0.00 | O7: 0.00 | P7: 0.00 | Q7: 0.00
A8: 208 | B8: 11 | C8: 04 | D8: 残疾人康复 | E8: 480,000.00 | F8: 0.00 | G8: 0.00 | H8: 0.00 | I8: 0.00 | J8: 480,000.00 | K8: 0.00 | L8: 480,000.00 | M8: 0.00 | N8: 0.00 | O8: 0.00 | P8: 0.00 | Q8: 0.00
A9: 208 | B9: 11 | C9: 05 | D9: 残疾人就业和扶贫 | E9: 460,000.00 | F9: 0.00 | G9: 0.00 | H9: 0.00 | I9: 0.00 | J9: 460,000.00 | K9: 0.00 | L9: 460,000.00 | M9: 0.00 | N9: 0.00 | O9: 0.00 | P9: 0.00 | Q9: 0.00
A10: 208 | B10: 11 | C10: 02 | D10: 一般行政管理事务（残疾人事业） | E10: 2,129,958.80 | F10: 1,417,308.28 | G10: 1,270,308.28 | H10: 147,000.00 | I10: 0.00 | J10: 712,650.52 | K10: 667,650.52 | L10: 0.00 | M10: 45,000.00 | N10: 0.00 | O10: 0.00 | P10: 0.00 | Q10: 0.00
A11: 208 | B11: 05 | C11: 06 | D11: 机关事业单位职业年金缴费支出 | E11: 8,690.88 | F11: 8,690.88 | G11: 8,690.88 | H11: 0.00 | I11: 0.00 | J11: 0.00 | K11: 0.00 | L11: 0.00 | M11: 0.00 | N11: 0.00 | O11: 0.00 | P11: 0.00 | Q11: 0.00
A12: 208 | B12: 11 | C12: 07 | D12: 残疾人生活和护理补贴 | E12: 1,260,000.00 | F12: 0.00 | G12: 0.00 | H12: 0.00 | I12: 0.00 | J12: 1,260,000.00 | K12: 370,000.00 | L12: 890,000.00 | M12: 0.00 | N12: 0.00 | O12: 0.00 | P12: 0.00 | Q12: 0.00
A13: 208 | B13: 11 | C13: 99 | D13: 其他残疾人事业支出 | E13: 420,000.00 | F13: 0.00 | G13: 0.00 | H13: 0.00 | I13: 0.00 | J13: 420,000.00 | K13: 270,000.00 | L13: 30,000.00 | M13: 120,000.00 | N13: 0.00 | O13: 0.00 | P13: 0.00 | Q13: 0.00
A14: 208 | B14: 05 | C14: 05 | D14: 机关事业单位基本养老保险缴费支出 | E14: 237,440.80 | F14: 237,440.80 | G14: 237,440.80 | H14: 0.00 | I14: 0.00 | J14: 0.00 | K14: 0.00 | L14: 0.00 | M14: 0.00 | N14: 0.00 | O14: 0.00 | P14: 0.00 | Q14: 0.00
A15: 221 | B15: 02 | C15: 01 | D15: 住房公积金 | E15: 94,976.32 | F15: 94,976.32 | G15: 94,976.32 | H15: 0.00 | I15: 0.00 | J15: 0.00 | K15: 0.00 | L15: 0.00 | M15: 0.00 | N15: 0.00 | O15: 0.00 | P15: 0.00 | Q15: 0.00

Sheet 一般预算基本支出表
A2: 一般公共预算基本支出情况表
A3: 单位临湘市残疾人联合会 | I3: 单位：元
A4: 功能科目 | E4: 总计 | F4: 基本支出
A5: 科目编码 | D5: 科目名称 | F5: 合计 | G5: 工资福利支出 | H5: 一般商品和服务支出 | I5: 对个人和家庭的补助
A6: 类 | B6: 款 | C6: 项
D7: 合计 | E7: =SUM(E8:E11) -> 1,758,416.28 | F7: =SUM(F8:F11) -> 1,758,416.28 | G7: =SUM(G8:G11) -> 1,611,416.28 | H7: =SUM(H8:H11) -> 147,000.00 | I7: =SUM(I8:I11) -> 0.00
A8: 208 | B8: 05 | C8: 06 | D8: 机关事业单位职业年金缴费支出 | E8: 8,690.88 | F8: 8,690.88 | G8: 8,690.88 | H8: 0.00 | I8: 0.00
A9: 208 | B9: 11 | C9: 02 | D9: 一般行政管理事务（残疾人事业） | E9: 1,417,308.28 | F9: 1,417,308.28 | G9: 1,270,308.28 | H9: 147,000.00 | I9: 0.00
A10: 208 | B10: 05 | C10: 05 | D10: 机关事业单位基本养老保险缴费支出 | E10: 237,440.80 | F10: 237,440.80 | G10: 237,440.80 | H10: 0.00 | I10: 0.00
A11: 221 | B11: 02 | C11: 01 | D11: 住房公积金 | E11: 94,976.32 | F11: 94,976.32 | G11: 94,976.32 | H11: 0.00 | I11: 0.00

Sheet 一般-工资福利
A2: 一般公共预算基本支出预算明细表-工资福利支出
A3: 单位：临湘市残疾人联合会 单位：元
A4: 功能科目 | D4: 科目名称 | E4: 总计 | F4: 工资性支出 | K4: 社会保障缴费 | S4: 伙食补贴支出 | U4: 其他工资福利支出
A5: 类 | B5: 款 | C5: 项 | F5: 合计 | G5: 基本工资 | H5: 津贴补贴 | I5: 奖金 | J5: 绩效工资 | K5: 合计 | L5: 基本医疗保险 | M5: 公务员医疗补助缴费 | N5: 其他社会保障缴费 | O5: 机关事业单位基本养老保险缴费 | P5: 职业年金 | Q5: 住房公积金 | R5: 医疗费 | S5: 合计 | T5: 伙食补助费
D6: 合计 | E6: =SUM(E7:E10) -> 1,611,416.28 | F6: 1,187,204.00 | G6: 689,352.00 | H6: 227,100.00 | I6: 30,920.00 | J6: 239,832.00 | K6: 424,212.28 | L6: 83,104.28 | M6: 0.00 | N6: 0.00 | O6: 237,440.80 | P6: 8,690.88 | Q6: 94,976.32 | R6: 0.00 | S6: 0.00 | T6: 0.00 | U6: 0.00
A7: 208 | B7: 5 | C7: 6 | D7: 机关事业单位职业年金缴费支出 | E7: 8,690.88 | F7: 0.00 | G7: 0.00 | H7: 0.00 | I7: 0.00 | J7: 0.00 | K7: 8,690.88 | L7: 0.00 | M7: 0.00 | N7: 0.00 | O7: 0.00 | P7: 8,690.88 | Q7: 0.00 | R7: 0.00 | S7: 0.00 | T7: 0.00 | U7: 0.00
A8: 208 | B8: 5 | C8: 5 | D8: 机关事业单位基本养老保险缴费支出 | E8: 237,440.80 | F8: 0.00 | G8: 0.00 | H8: 0.00 | I8: 0.00 | J8: 0.00 | K8: 237,440.80 | L8: 0.00 | M8: 0.00 | N8: 0.00 | O8: 237,440.80 | P8: 0.00 | Q8: 0.00 | R8: 0.00 | S8: 0.00 | T8: 0.00 | U8: 0.00
A9: 208 | B9: 11 | C9: 2 | D9: 一般行政管理事务（残疾人事业） | E9: 1,270,308.28 | F9: 1,187,204.00 | G9: 689,352.00 | H9: 227,100.00 | I9: 30,920.00 | J9: 239,832.00 | K9: 83,104.28 | L9: 83,104.28 | M9: 0.00 | N9: 0.00 | O9: 0.00 | P9: 0.00 | Q9: 0.00 | R9: 0.00 | S9: 0.00 | T9: 0.00 | U9: 0.00
A10: 221 | B10: 2 | C10: 1 | D10: 住房公积金 | E10: 94,976.32 | F10: 0.00 | G10: 0.00 | H10: 0.00 | I10: 0.00 | J10: 0.00 | K10: 94,976.32 | L10: 0.00 | M10: 0.00 | N10: 0.00 | O10: 0.00 | P10: 0.00 | Q10: 94,976.32 | R10: 0.00 | S10: 0.00 | T10: 0.00 | U10: 0.00

Sheet 一般-商品和服务支出
A2: 一般公共预算基本预算支出明细表-商品和服务支出
A3: 单位临湘市残疾人联合会 单位：元
A4: 功能科目 | D4: 科目名称 | E4: 总计 | F4: 办公费 | G4: 日常印刷费 | H4: 水费 | I4: 电费 | J4: 邮电费 | K4: 取暖费 | L4: 物业管理费 | M4: 差旅费 | N4: 日常维修(护)费 | O4: 租赁费 | P4: 会议费 | Q4: 培训费 | R4: 公务接待费 | S4: 劳务费 | T4: 工会经费 | U4: 福利费 | V4: 公务用车运行维护费 | W4: 其他交通费 | X4: 其他一般商品和服务支出
A5: 类 | B5: 款 | C5: 项
D6: 合计 | E6: =SUM(E7:E9) -> 1,454,650.52 | F6: 101,500.00 | G6: 127,930.00 | H6: 32,800.00 | I6: 109,200.00 | J6: 52,500.00 | K6: 0.00 | L6: 25,000.00 | M6: 169,000.00 | N6: 174,000.00 | O6: 0.00 | P6: 77,000.00 | Q6: 72,300.00 | R6: 56,000.00 | S6: 41,500.00 | T6: 5,530.00 | U6: 17,240.00 | V6: 141,500.00 | W6: 97,650.52 | X6: =SUM(X7:X9) -> 1,000.0000
A7: 208 | B7: 11 | C7: 99 | D7: 其他残疾人事业支出 | E7: 270,000.00 | F7: 20,000.00 | G7: 70,000.00 | H7: 0.00 | I7: 10,000.00 | J7: 20,000.00 | K7: 0.00 | L7: 0.00 | M7: 15,000.00 | N7: 0.00 | O7: 0.00 | P7: 15,000.00 | Q7: 20,000.00 | R7: 6,000.00 | S7: 15,000.00 | T7: 0.00 | U7: 0.00 | V7: 4,000.00 | W7: 35,000.00 | X7: 0.0000
A8: 208 | B8: 11 | C8: 2 | D8: 一般行政管理事务（残疾人事业） | E8: 814,650.52 | F8: 66,500.00 | G8: 37,930.00 | H8: 22,800.00 | I8: 79,200.00 | J8: 17,500.00 | K8: 0.00 | L8: 25,000.00 | M8: 94,000.00 | N8: 159,000.00 | O8: 0.00 | P8: 42,000.00 | Q8: 22,300.00 | R8: 0.00 | S8: 16,500.00 | T8: 5,530.00 | U8: 17,240.00 | V8: 137,500.00 | W8: 12,650.52 | X8: 1,000.0000
A9: 208 | B9: 11 | C9: 7 | D9: 残疾人生活和护理补贴 | E9: 370,000.00 | F9: 15,000.00 | G9: 20,000.00 | H9: 10,000.00 | I9: 20,000.00 | J9: 15,000.00 | K9: 0.00 | L9: 0.00 | M9: 60,000.00 | N9: 15,000.00 | O9: 0.00 | P9: 20,000.00 | Q9: 30,000.00 | R9: 50,000.00 | S9: 10,000.00 | T9: 0.00 | U9: 0.00 | V9: 0.00 | W9: 50,000.00 | X9: 0.0000

Sheet 一般-个人家庭
A2: 一般公共预算基本支出明细表-对个人和家庭的补助
P3: 单位：元
A4: 功能科目 | D4: 科目名称 | E4: 总计 | F4: 离休费 | G4: 退休费 | H4: 退职(役)费 | I4: 抚恤金 | J4: 生活补助 | K4: 救济费 | L4: 医疗费 | M4: 助学金 | N4: 奖励金 | O4: 生产补贴 | P4: 其他对个人和家庭的补助
A5: 类 | B5: 款 | C5: 项
D6: 合计 | E6: =SUM(E7:E10) -> 1,860,000.00 | F6: 0.00 | G6: 0.00 | H6: 0.00 | I6: 0.00 | J6: 0.00 | K6: 0.00 | L6: 0.00 | M6: 0.00 | N6: 0.00 | O6: 0.00 | P6: 1,860,000.00
A7: 208 | B7: 11 | C7: 4 | D7: 残疾人康复 | E7: 480,000.00 | F7: 0.00 | G7: 0.00 | H7: 0.00 | I7: 0.00 | J7: 0.00 | K7: 0.00 | L7: 0.00 | M7: 0.00 | N7: 0.00 | O7: 0.00 | P7: 480,000.00
A8: 208 | B8: 11 | C8: 5 | D8: 残疾人就业和扶贫 | E8: 460,000.00 | F8: 0.00 | G8: 0.00 | H8: 0.00 | I8: 0.00 | J8: 0.00 | K8: 0.00 | L8: 0.00 | M8: 0.00 | N8: 0.00 | O8: 0.00 | P8: 460,000.00
A9: 208 | B9: 11 | C9: 99 | D9: 其他残疾人事业支出 | E9: 30,000.00 | F9: 0.00 | G9: 0.00 | H9: 0.00 | I9: 0.00 | J9: 0.00 | K9: 0.00 | L9: 0.00 | M9: 0.00 | N9: 0.00 | O9: 0.00 | P9: 30,000.00
A10: 208 | B10: 11 | C10: 7 | D10: 残疾人生活和护理补贴 | E10: 890,000.00 | F10: 0.00 | G10: 0.00 | H10: 0.00 | I10: 0.00 | J10: 0.00 | K10: 0.00 | L10: 0.00 | M10: 0.00 | N10: 0.00 | O10: 0.00 | P10: 890,000.00

Sheet 基金
A2: 政府性基金预算支出情况表
A3: 单位临湘市残疾人联合会 | Q3: 单位：元
A4: 功能科目 | E4: 总计 | F4: 基本支出 | J4: 项目支出
A5: 科目编码 | D5: 科目名称 | F5: 合计 | G5: 工资福利支出 | H5: 一般商品和服务支出 | I5: 对个人和家庭的补助 | J5: 合计 | K5: 商品和服务支出 | L5: 对个人和家庭的补助支出 | M5: 基本建设 | N5: 其他资本性支出 | O5: 对企事业单位的补贴 | P5: 其他支出 | Q5: 债务利息及费用支出
A6: 类 | B6: 款 | C6: 项

Sheet 专户
A2: 纳入专户管理的非税收入预算拨款汇总表
A3: 单位临湘市残疾人联合会 | Q3: 单位：元
A4: 功能科目 | E4: 总计 | F4: 基本支出 | J4: 项目支出
A5: 科目编码 | D5: 科目名称 | F5: 合计 | G5: 工资福利支出 | H5: 一般商品和服务支出 | I5: 对个人和家庭的补助 | J5: 合计 | K5: 商品和服务支出 | L5: 对个人和家庭的补助支出 | M5: 基本建设 | N5: 其他资本性支出 | O5: 对企事业单位的补贴 | P5: 其他支出 | Q5: 债务利息及费用支出
A6: 类 | B6: 款 | C6: 项

Sheet 经费拨款
A2: 一般预算拨款-经费拨款
A3: 单位临湘市残疾人联合会 | Q3: 单位：元
A4: 功能科目 | E4: 总计 | F4: 基本支出 | J4: 项目支出
A5: 科目编码 | D5: 科目名称 | F5: 合计 | G5: 工资福利支出 | H5: 一般商品和服务支出 | I5: 对个人和家庭的补助 | J5: 合计 | K5: 商品和服务支出 | L5: 对个人和家庭的补助支出 | M5: 基本建设 | N5: 其他资本性支出 | O5: 对企事业单位的补贴 | P5: 其他支出 | Q5: 债务利息及费用支出
A6: 类 | B6: 款 | C6: 项
D7: 合计 | E7: =SUM(E8:E10) -> 1,591,066.80 | F7: 1,591,066.80 | G7: 1,456,066.80 | H7: 135,000.00 | I7: 0.00 | J7: 0.00 | K7: 0.00 | L7: 0.00 | M7: 0.00 | N7: 0.00 | O7: 0.00 | P7: 0.00 | Q7: 0.00
A8: 208 | B8: 11 | C8: 2 | D8: 一般行政管理事务（残疾人事业） | E8: 1,289,067.76 | F8: 1,289,067.76 | G8: 1,154,067.76 | H8: 135,000.00 | I8: 0.00 | J8: 0.00 | K8: 0.00 | L8: 0.00 | M8: 0.00 | N8: 0.00 | O8: 0.00 | P8: 0.00 | Q8: 0.00
A9: 208 | B9: 5 | C9: 5 | D9: 机关事业单位基本养老保险缴费支出 | E9: 215,713.60 | F9: 215,713.60 | G9: 215,713.60 | H9: 0.00 | I9: 0.00 | J9: 0.00 | K9: 0.00 | L9: 0.00 | M9: 0.00 | N9: 0.00 | O9: 0.00 | P9: 0.00 | Q9: 0.00
A10: 221 | B10: 2 | C10: 1 | D10: 住房公积金 | E10: 86,285.44 | F10: 86,285.44 | G10: 86,285.44 | H10: 0.00 | I10: 0.00 | J10: 0.00 | K10: 0.00 | L10: 0.00 | M10: 0.00 | N10: 0.00 | O10: 0.00 | P10: 0.00 | Q10: 0.00

Sheet 专项
A2: 专项资金预算汇总表
H3: 单位：元
A4: 项目名称 | B4: 总计 | C4: 一般预算拨款 | E4: 纳入专户管理的非税收入拨款 | F4: 政府性基金拨款 | G4: 上级补助收入 | H4: 其他收入
C5: 经费拨款 | D5: 纳入预算管理的非税收入拨款
B6: =SUM(B7:B13) -> 3332650.52 | C6: 0.00 | D6: 3332650.52 | E6: 0.00 | F6: 0.00 | G6: 0.00 | H6: 0.00
A7: 残疾人两项补贴 | B7: 890000.00 | C7: 0.00 | D7: 890000.00 | E7: 0.00 | F7: 0.00 | G7: 0.00 | H7: 0.00
A8: 残疾人工作经费 | B8: 712650.52 | C8: 0.00 | D8: 712650.52 | E8: 0.00 | F8: 0.00 | G8: 0.00 | H8: 0.00
A9: 两项补贴发放工作经费 | B9: 370000.00 | C9: 0.00 | D9: 370000.00 | E9: 0.00 | F9: 0.00 | G9: 0.00 | H9: 0.00
A10: 残疾人基本服务状况和需求信息更新 | B10: 160000.00 | C10: 0.00 | D10: 160000.00 | E10: 0.00 | F10: 0.00 | G10: 0.00 | H10: 0.00
A11: 残疾人就业扶贫 | B11: 460000.00 | C11: 0.00 | D11: 460000.00 | E11: 0.00 | F11: 0.00 | G11: 0.00 | H11: 0.00
A12: 残疾人康复（含精神病专科医院康复训练） | B12: 480000.00 | C12: 0.00 | D12: 480000.00 | E12: 0.00 | F12: 0.00 | G12: 0.00 | H12: 0.00
A13: 基层组织和维权保障 | B13: 260000.00 | C13: 0.00 | D13: 260000.00 | E13: 0.00 | F13: 0.00 | G13: 0.00 | H13: 0.00

Sheet 三公
A1: 一般公共预算“三公”经费预算表
A2: 单位：临湘市残疾人联合会 | G2: 单位：元
A3: 单位名称 | B3: 三公经费预算数(一般公共预算拨款)
B4: 小计 | C4: 公务接待费 | D4: 公务用车购置及运行费 | E4: 其中： | G4: 因公出国(境)费用
E5: 公务用车购置费 | F5: 公务用车运行维护费
A6: 合计 | B6: =B7 -> 197,500.00 | C6: 56,000.00 | D6: 141,500.00 | F6: 141,500.00 | G6: =G7 -> 0.00
A7: 临湘市残疾人联合会 | B7: 197,500.00 | C7: 56,000.00 | D7: 141,500.00 | F7: 141,500.00 | G7: 0.00

Sheet 绩效申报
A1: 项目绩效目标申报表
A2: 单位：临湘市残疾人联合会 | K2: 单位：万元
A3: 单位编码 | B3: 单位名称 | C3: 申报金额 | D3: 项目实施产出成果目标 | H3: 项目绩效目标
D4: 定量目标（成果目标） | G4: 定性目标（成果目标） | H4: 定量目标（绩效目标） | K4: 定性目标（绩效目标）
D5: 目标类型 | E5: 目标（指标）内容 | F5: 目标（指标）值 | H5: 效益类型 | I5: 目标（指标）内容B | J5: 目标（指标）值B
A6: ** | B6: ** | C6: 1 | D6: 2 | E6: 3 | F6: 4 | G6: 5 | H6: 6 | I6: 7 | J6: 8 | K6: 9
B7: 合计 | C7: =SUM(C8:C12) -> 291.26
A8: 504001 | B8: 临湘市残疾人联合会 | C8: 46.00 | D8: 安排100名残疾人就业，并通过参加社会劳动脱贫。 | E8: 进行残疾人就业补贴 | F8: 100人就业 | G8: 残疾人脱贫 | H8: 安排就业 | I8: 100人就业 | J8: 就业残疾人年收入达到2万元 | K8: 精准扶贫
A9: 504001 | B9: 临湘市残疾人联合会 | C9: 89.00
A10: 504001 | B10: 临湘市残疾人联合会 | C10: 37.00 | D10: 发放残疾人生活补贴和护理补贴工作经费 | E10: 发放残疾人生活补贴和护理补贴 | F10: 年发放11000人次 | G10: 工作经费 | H10: 11000人次补贴发放 | I10: 11000人次补贴发放 | J10: 11000人次补贴发放 | K10: 保障残疾人基本生活
A11: 504001 | B11: 临湘市残疾人联合会 | C11: 71.26 | D11: 机关事务管理 | E11: 补贴机关运行支出。 | F11: 116万元 | G11: 确保残疾人事业正常运转。 | H11: 社会效益。 | I11: 正常运行 | J11: 116万元 | K11: 机关运转正常
A12: 504001 | B12: 临湘市残疾人联合会 | C12: 48.00 | D12: 残疾人康复及服务 | E12: 康复15人 | F12: 人均康复经费2万元 | G12: 康复服务治疗 | H12: 社会康复 | I12: 15人康复并生活处理 | J12: 15人 | K12: 康复及服务

Sheet 绩效目标整体申报
A1: 整体支出绩效目标申报表
A2: 单位：临湘市残疾人联合会 | X2: 单位：万元
A3: 单位编码 | B3: 单位名称 | C3: 预算绩效管理联络员 | D3: 联系电话 | E3: 人员编制数 | F3: 实有人数 | G3: 单位职能 | H3: 单位年度收入预算（万元） | M3: 单位年度支出预算（万元） | T3: 部门整体支出年度绩效目标 | U3: 部门整体支出年度绩效指标 | W3: 其他说明的问题 | X3: 财政部门审核意见
H4: 收入合计 | I4: 公共财政拨款 | J4: 政府性基金拨款 | K4: 非税收入拨款 | L4: 其他拨款 | M4: 支出合计 | N4: 基本支出 | O4: 项目支出 | P4: 其中三公经费预算（万元） | Q4: 公务用车运行和购置费 | R4: 公务接待费 | S4: 因公出国（境）费 | U4: 数量指标 | V4: 效益指标
A5: ** | B5: ** | C5: ** | D5: ** | E5: 1 | F5: 2 | G5: 3 | H5: 4 | I5: 5 | J5: 6 | K5: 7 | L5: 8 | M5: 9 | N5: 10 | O5: 11 | P5: 12 | Q5: 13 | R5: 14 | S5: 15 | T5: 16 | U5: 17 | V5: 18 | W5: 19 | X5: 20
B6: 合计 | E6: =E7 -> 21 | F6: =F7 -> 24 | H6: =H7 -> 509.10 | I6: 159.10 | J6: 0.00 | K6: 350.00 | L6: 0.00 | M6: 509.10 | N6: 175.84 | O6: 333.26 | P6: 22.00 | Q6: 0.00 | R6: 22.00 | S6: 0.00
A7: 504001 | B7: 临湘市残疾人联合会 | C7: 汪洁 | D7: 3377166 | E7: 21 | F7: 24 | G7: “代表、服务、管理”。代表残疾人共同利益，维护残疾人合法权益；开展各项业务和活动，直接为残疾人服务；承担政府委托的部分行政职能，发展和管理残疾人事业。 | H7: 509.10 | I7: 159.10 | J7: 0.00 | K7: 350.00 | L7: 0.00 | M7: 509.10 | N7: 175.84 | O7: 333.26 | P7: 22.00 | Q7: 0.00 | R7: 22.00 | S7: 0.00 | T7: “代表、服务、管理”。代表残疾人共同利益，维护残疾人合法权益；开展各项业务和活动，直接为残疾人服务；承担政府委托的部分行政职能，发展和管理残疾人事业。 确保我市残疾人事业稳步推进，保证我市经济社会稳定。残疾人生活保障到位，精准脱贫。 | U7: 纳入非税收入管理的专项支出较17年增长43万元，主要是机关维修经费增长所致。其他指标略有增加。 | V7: 我市残疾人管理精准到位。经济社会稳定；残疾人全年无上访。 | W7: 无
